Cogmind - Beta 17 @@@ ROGUE MODE // 2026.07.30 @ 08:43:31 Player: aperiodic Result: Destroyed by AQ-T2I(R) with Subdweller Machine Gun Performance ------------- Evolutions (0) 0 Regions Visited (2) 400 Robots Destroyed (35) 175 Value Destroyed (947) 947 Prototype IDs (14) 280 Alien Tech Used (0) 0 Bonus (0) 0 TOTAL SCORE: 1802 Bonus ------- None Cogmind --------- Core Integrity 0/250 Matter 262/300 Energy 265/265 System Corruption 1% Temperature Cool (0) Movement Rolling (120) Ox1 Location -10/Subcaves Parts ------- > --- POWER (1) -------- Improved Ion Engine > --- PROPULSION (2) --- Subdweller Monowheel > --- UTILITY (2) ------ Light Armor Plating Medium Armor Plating (fused) > --- WEAPON (2) ------- Battle Rifle Subdweller Machine Gun > --- INVENTORY (5) ---- Seismic Detector Makeshift ECM Suite Makeshift Hacking Suite Mini Grenade Launcher Mining Laser Peak State ------------ > --- POWER ------------ Ion Engine > --- PROPULSION ------- Compact Wheel Compact Wheel > --- UTILITY ---------- Huge Storage Unit Medium Armor Plating > --- WEAPON ----------- Shotgun Shotgun > --- INVENTORY -------- Ion Engine Light Treads Light Treads Light Treads Wheel Wheel Hover Unit Flight Unit Improved Heat Sink Improved Heat Sink Medium Storage Unit Weight Redist. System Seismic Detector Targeting Computer Light Armor Plating Medium Armor Plating Beam Rifle Beam Rifle Beam Rifle Light Assault Rifle Light Assault Rifle Shotgun Shotgun Grenade Launcher Mining Laser [Rating: 13] Favorites ----------- Power Subdweller Power Source Engine Subdweller Power Source Propulsion Wheel Treads Light Treads Wheel Wheel Utility Medium Armor Plating Device Seismic Detector Storage Huge Storage Unit Protection Medium Armor Plating Weapon Battle Rifle Energy Gun Beam Rifle Ballistic Gun Battle Rifle Ballistic Cannon Light Cannon Launcher Mini Grenade Launcher Special Weapon Mining Laser Build | -11 -10 -10 ------- Run | Yrd Mat Sub Slots Evolved . | . . . Power . | . . . Propulsion . | . . . Utility . | . . . Weapon . | . . . Parts Attached 38 | 7 19 12 Power 4 | 1 1 2 Engine 4 | 1 1 2 Core . | . . . Reactor . | . . . Propulsion 11 | 2 7 2 Treads 3 | . 3 . Leg . | . . . Wheel 8 | 2 4 2 Hover . | . . . Flight . | . . . Utility 10 | 2 5 3 Device 1 | 1 . . Storage 3 | 1 2 . Processor . | . . . Hackware . | . . . Protection 6 | . 3 3 Artifact . | . . . Weapon 13 | 2 6 5 Energy Gun 3 | 1 1 1 Energy Cannon . | . . . Ballistic Gun 7 | 1 3 3 Ballistic Cannon 1 | . 1 . Launcher 1 | . . 1 Special Weapon 1 | . 1 . Impact Weapon . | . . . Slashing Weapon . | . . . Piercing Weapon . | . . . Special Melee Weapon . | . . . Unidentified Prototypes . | . . . Parts Lost 10 | . 1 9 Power 1 | . . 1 Propulsion 4 | . . 4 Utility 4 | . 1 3 Weapon 1 | . . 1 Highest Loss Streak 3 | . 1 3 To Critical Strikes . | . . . Average Backups 8 | 4 22 4 Power . | 1 1 . Propulsion 1 | 2 5 . Utility 2 | . 5 2 Weapon 3 | . 9 2 Tool/Special . | . . . Unused Backups 21 | 1 8 12 Power 2 | . 1 1 Propulsion 2 | . . 2 Utility 9 | . 5 4 Weapon 8 | 1 2 5 Tool/Special . | . . . Average Slot Usage (%) 97 | . 99 96 Engine 13 | . 14 13 Treads 2 | . 5 2 Wheel 23 | . 22 24 Device 10 | . 1 12 Storage 3 | . 14 . Protection 14 | . 12 14 Energy Gun 2 | . 1 2 Ballistic Gun 22 | . 24 22 Special Weapon 2 | . 1 2 Peak Build Rating 13 | 7 13 13 Average Rating 11 | 6 11 11 On Entrance 6 | . 7 13 Avg Prop Armor Cover (%) 6 | . . 6 Naked Turns . | . . . Heaviest Build 98 | 14 98 98 Greatest Support 32 | 20 32 32 Greatest Overweight (x) 5 | 1 4 5 Average Overweight (x) . | . 2 . Largest Inventory Capacity 25 | 8 25 25 Average Capacity 9 | 7 24 5 Most Carried 25 | 7 25 25 Average Carried 8 | 4 22 4 Final Capacity 25 | 8 25 5 Final Carried 25 | 6 25 5 Class Distribution -------------------- 97% | Mutant Dominant Class ---------------- Mutant | -10/Materials Mutant | -10/Subcaves Resources | -11 -10 -10 ----------- Run | Yrd Mat Sub Matter Collected 1795 | 288 644 863 Remotely . | . . . Salvage Created 1526 | 178 798 550 Parts 77 | 13 31 33 Haulers Intercepted 2 | . 2 . Recyclers Shooed . | . . . Parts Field Recycled . | . . . Retrieved Matter . | . . . Parts Self-Destructed 5 | . . 5 Prevented . | . . . Parts Restored . | . . . Kills | -11 -10 -10 ------- Run | Yrd Mat Sub Combat Hostiles Destroyed 22 | . 10 12 Guns 22 | . 10 12 Classes Destroyed 7 | 2 3 2 Worker 1 | . 1 . Tunneler 5 | 5 . . Hauler 2 | . 2 . Recycler 5 | 1 4 . Grunt 10 | . 10 . Sentry 1 | . . 1 Subdweller 11 | . . 11 Best Kill Streak 4 | 4 4 2 Combat Bots Only 2 | . 2 2 Max Kills in Single Turn 1 | 1 1 1 Gunslinging . | . . . Exploded . | . . . Melee . | . . . Uniques/NPCs Destroyed . | . . . Combat | -11 -10 -10 -------- Run | Yrd Mat Sub Hostile Shots Fired 110 | . 36 74 Missed 24 | . 8 16 Hits 86 | . 28 58 Projectile 86 | . 28 58 Critical Strikes 3 | . 2 1 Damage Taken 1677 | . 355 1322 Core 262 | . 41 221 Absorbed by Shields . | . . . Core Remaining (%) 100 | 100 . . Volleys Fired 181 | 18 51 112 Largest 2 | 2 2 2 Hottest 112 | 70 100 112 Shots Fired 290 | 36 98 156 Gun 231 | 36 94 101 Cannon . | . . . Launcher . | . . . Special 59 | . 4 55 Kinetic 179 | 18 94 67 Thermal 111 | 18 4 89 Explosive . | . . . Electromagnetic . | . . . Robot Hit Streak 29 | 7 13 29 Robot Miss Streak 5 | 2 5 2 Penetration Max . | . . . Secondary Targets 2 | . . 2 Max Gunslinging Chain 1 | . . 1 Shots Hit Robots 184 | 26 71 87 Core Hits 70 | 9 39 22 Critical Kills 1 | . . 1 Critical Parts Destroyed 3 | . 2 1 Critical Strikes 11 | 2 2 7 Burn 6 | 2 . 4 Destroy 5 | . 2 3 Melee Attacks . | . . . Impact . | . . . Slashing . | . . . Piercing . | . . . Sneak Attacks . | . . . Combat Hostiles . | . . . Follow-up Attacks . | . . . Damage Inflicted 2744 | 295 1066 1383 Guns 2744 | 295 1066 1383 Cannons . | . . . Explosions . | . . . Melee . | . . . Ramming . | . . . Kinetic 2087 | 95 1066 926 Thermal 657 | 200 . 457 Explosive . | . . . Electromagnetic . | . . . Impact . | . . . Slashing . | . . . Piercing . | . . . Highest Corruption 1 | . 1 1 Average Corruption 1 | . 1 1 Corruption Purged . | . . . Corruption Blocked . | . . . Effects 38 | . 6 32 Message Errors 6 | . 2 4 Matter Fused 11 | . . 11 Heat Flow Errors 5 | . . 5 Energy Discharges 6 | . . 6 Parts Rejected 2 | . 2 . Parts Fused 3 | . 1 2 Data Loss (minor) 2 | . 1 1 Data Loss (major) 2 | . . 2 Misfires 1 | . . 1 Overload Shots . | . . . Overflow Damage . | . . . Projectiles . | . . . Explosions . | . . . Melee . | . . . Knockbacks . | . . . Impact . | . . . Kinetic . | . . . Secondary . | . . . Self-Inflicted Damage . | . . . Shots . | . . . Rammed . | . . . Targets Rammed . | . . . Kicked . | . . . Crushed . | . . . Highest Temperature 204 | 110 64 204 Average Temperature 36 | 42 18 60 Received Heat Transfer 348 | . 237 111 Siege Activations . | . . . Martial Activations . | . . . Shielding Activations . | . . . Robots Disrupted . | . . . Combat Hostiles . | . . . Robots Corrupted . | . . . Combat Hostiles . | . . . Parts Fried . | . . . Impact Corruptions . | . . . Robots Melted . | . . . Combat Hostiles . | . . . Parts Melted 3 | 3 . . Heat Transferred 2183 | 740 . 1443 Parts Sabotaged . | . . . Parts Stolen . | . . . Parts Stripped . | . . . Power Chain Reactions . | . . . Alert | -11 -10 -10 ------- Run | Yrd Mat Sub Maximum Alert Level . | . . . Low Security (%) 100 | 100 100 . Level 1 . | . . . Level 2 . | . . . Level 3 . | . . . Level 4 . | . . . Level 5 . | . . . High Security . | . . . Max Security . | . . . Peak Influence 81 | 10 81 . Initial . | . . . Average 22 | 2 24 . Influence Increases 378 | 30 328 20 Destroy 0b10 Robot/C 220 | . 200 20 Destroy 0b10 Robot/NC 65 | 30 35 . Destroy Leader 44 | . 44 . Destroy Structure 4 | . 4 . Lose Combat Pursuer 45 | . 45 . Influence Decreases 378 | 30 328 20 Time Decay 353 | 30 318 5 Lost Part 25 | . 10 15 Squads Dispatched . | . . . Investigation . | . . . Extermination . | . . . Reinforcement . | . . . Assault . | . . . Garrison . | . . . Intercept . | . . . Searches Triggered . | . . . Construction Impeded . | . . . Haulers Reinforced . | . . . Active Scanning Responses . | . . . Cargo Convoy Interrupts . | . . . Stealth | -11 -10 -10 --------- Run | Yrd Mat Sub Distress Signals 1 | . 1 . Communications Jammed . | . . . Distress Signals . | . . . Times Spotted 32 | . 18 14 Peak Tracking Total 5 | . 5 2 Tactical Retreats 2 | . 2 . Traps | -11 -10 -10 ------- Run | Yrd Mat Sub Traps Triggered 3 | . 1 2 Indirectly . | . . . Trap Hack Attempts . | . . . Triggered . | . . . Disarmed . | . . . Reprogrammed . | . . . Reused . | . . . Traps Extracted . | . . . Installed . | . . . Triggered . | . . . Most Traps Carried 1 | . . 1 Machines | -11 -10 -10 ---------- Run | Yrd Mat Sub Machines Disabled . | . . . Max in Single Turn . | . . . Machines Repaired . | . . . Machines Dismantled . | . . . Machines Sabotaged . | . . . Overloaded Fab Kills . | . . . Hacking | -11 -10 -10 --------- Run | Yrd Mat Sub Machines Accessed 1 | . . 1 Terminals . | . . . Fabricators . | . . . Repair Stations . | . . . Recycling Units . | . . . Scanalyzers . | . . . Garrison Access . | . . . Total Hacks 1 | . . 1 Successful 1 | . . 1 Failed . | . . . Catastrophic . | . . . Database Lockouts . | . . . Manual . | . . . Terminals . | . . . Fabricators . | . . . Repair Stations . | . . . Recycling Units . | . . . Scanalyzers . | . . . Garrison Access . | . . . Terminal Hacks 1 | . . 1 Proto ID Catalog 1 | . . 1 Fabricator Hacks . | . . . Repair Station Hacks . | . . . Recycling Unit Hacks . | . . . Scanalyzer . | . . . Garrison Access Hacks . | . . . Unauthorized Hacks . | . . . Terminals . | . . . Fabricators . | . . . Repair Stations . | . . . Recycling Units . | . . . Scanalyzers . | . . . Garrison Access . | . . . Data Cores Recovered . | . . . Used . | . . . Hacking Detections . | . . . Full Trace Events . | . . . Feedback Events . | . . . Feedback Blocked . | . . . Robot Schematics Acquired . | . . . Robots Built . | . . . Authchips . | . . . Time . | . . . Total Robot Build Rating . | . . . Part Schematics Acquired . | . . . Parts Built . | . . . Authchips . | . . . Time . | . . . Total Part Build Rating . | . . . Part Studies Acquired . | . . . Parts Repaired . | . . . Time . | . . . Parts Recycled . | . . . Recycled Matter . | . . . Retrieved Matter . | . . . Retrieved Components . | . . . Parts Scanalyzed . | . . . Part Schematics Acquired . | . . . Parts Damaged . | . . . Bothacking | -11 -10 -10 ------------ Run | Yrd Mat Sub Used RIF Installer . | . . . Robots Hacked . | . . . Non-combat . | . . . Combat . | . . . Robot Hacks Applied . | . . . Relay Couplers Released . | . . . Fabnet Peak Effective % . | . . . Robots Rewired . | . . . Allies Hacked . | . . . Hacks Repelled . | . . . Allies | -11 -10 -10 -------- Run | Yrd Mat Sub Total Allies . | . . . Largest Group . | . . . Highest-Rated Group . | . . . Highest-Rated Ally . | . . . Total Orders . | . . . Ally Attacks . | . . . Total Damage . | . . . Kills . | . . . Allies Corrupted . | . . . Allies Melted . | . . . Intel | -11 -10 -10 ------- Run | Yrd Mat Sub Active Infowar (turns) 4163 | 88 93 3982 Seismic 4163 | 88 93 3982 Robot Analysis Total . | . . . Derelict Logs Recovered 1 | . . 1 Drone Launches . | . . . Drone Recoveries . | . . . Exploration | -11 -10 -10 ------------- Run | Yrd Mat Sub Turns Passed 5777 | 149 1221 4407 Spaces Moved 3666 | 90 517 3059 Core 17 | 1 . 16 Treads 68 | . . 68 Legs . | . . . Wheels 3581 | 89 517 2975 Hover . | . . . Flight . | . . . Fastest Speed 50 | 50 80 80 Average Speed 95 | 80 131 90 Slowest Speed 300 | 95 145 300 Overloaded Moves . | . . . Propulsion Burnouts . | . . . Robots Hopped . | . . . Potential Cave-ins . | . . . Cave-ins Triggered . | . . . Exploration Rate (%) 62 | 3 88 96 Regions Visited 2 Branch Regions 1 Pre-discovered Areas . | . . . Known Exits Taken . | . . . Unknown Exits Taken 2 | 1 1 . Scrap Searched 6 | . . 6 Spaces Dug 3 | . 3 . Terrain Destroyed 3 | . 3 . Melee . | . . . Projectile 3 | . 3 . AOE . | . . . Terrain Rammed . | . . . Walls Destroyed . | . . . Machines Disabled . | . . . Actions | -11 -10 -10 --------- Run | Yrd Mat Sub Total 5514 | 131 944 4439 Wait 1475 | 8 290 1177 Move 3664 | 89 516 3059 Hop . | . . . Pick Up 55 | 8 29 18 Fast Attach 19 | 6 5 8 Attach 11 | 1 3 7 Detach 1 | . 1 . Swap 69 | . 32 37 Drop 37 | 1 17 19 Fire 181 | 18 51 112 Melee . | . . . Ram . | . . . Kick . | . . . Crush . | . . . Escape Stasis . | . . . Rewire . | . . . Trap . | . . . Miscellaneous 2 | . . 2 Route ------- -11/Scrapyard -10/Materials (discovered 4 exits: [*Mat x2] / [*Min] / *Sub) -10/Subcaves (discovered 2 exits: [*Mat x2]) History --------- Turn | Location | Event 20 | -11/Scrapyard | Discovered new exit (range 16) 150 | -11/Scrapyard | Entered Materials 314 | -10/Materials | Build established: Mutant 536 | -10/Materials | Discovered new exit (range 14) 869 | -10/Materials | Discovered new exit (range 16) 1217 | -10/Materials | Discovered new exit (range 14) 1345 | -10/Materials | Discovered new exit (range 7) 1371 | -10/Materials | Entered Subcaves 1372 | -10/Subcaves | Approached by a straggling Scientist 1415 | -10/Subcaves | Ambushed by Subdwellers from Twisted Machinery 1495 | -10/Subcaves | Ambushed by Subdwellers from Twisted Machinery 1710 | -10/Subcaves | Discovered new exit (range 10) 1727 | -10/Subcaves | Shifting Twisted Machinery released Sub. Machine Gun 1735 | -10/Subcaves | Shifting Twisted Machinery released Battle Rifle 1780 | -10/Subcaves | Disturbed a concealed Subdweller 2077 | -10/Subcaves | A swath of the cavern ceiling suddenly collapsed 2133 | -10/Subcaves | Shifting Twisted Machinery released Piercing Trap 2136 | -10/Subcaves | Shifting Twisted Machinery released Battle Cannon 3186 | -10/Subcaves | Learned 8 Materials zone layouts 3887 | -10/Subcaves | A swath of the cavern ceiling suddenly collapsed 4162 | -10/Subcaves | Visited 4L-MR0's lab 4508 | -10/Subcaves | Core integrity fell below 50% 5131 | -10/Subcaves | Shifting Twisted Machinery released Sub. Machine Gun 5133 | -10/Subcaves | Shifting Twisted Machinery released Sub. Monowheel 5197 | -10/Subcaves | Discovered new exit (range 7) 5254 | -10/Subcaves | Lost 3 parts (2n1w) 5466 | -10/Subcaves | Disturbed a concealed Subdweller 5472 | -10/Subcaves | Core integrity fell below 20% 5778 | -10/Subcaves | Destroyed by AQ-T2I(R) with Subdweller Machine Gun Last Messages --------------- 05463_ Found Shrapnel Trap. 05463_ Found 36 Matter. 05464_ Acquired 30 matter. 05464_ Searching scrap... 05464_ Found Sub. Laser. 05464_ Found 63 Matter. 05466_ V1-S9B(R) angrily emerges from the Twisted Machinery. 05469_ Acquired 5 matter. 05470_ Subatomizers dissect the Sub. Laser. 05472_ Acquired 1 matter. 05475_ Wheel destroyed. 05484_ Subatomizers dissect the Sub. Laser. 05490_ V1-S9B(R) destroyed. 05491_ Acquired 24 matter. 05644_ Subatomizers dissect the Sub. Power Source. 05648_ System corrupted: FCS attempts to trigger Battle Rifle. 05648_ System corrupted: Battle Rifle misfires. Map ----- +----------------------------------------------------+ | | | | | | | | | | | | | | | | | | | | | | | | | ?????????????????????????????????????????????????? | | ?????????????????????????????????????????????????? | | ?????????????????????????????????????????????????? | | ?????????????????????????????????????????????????? | | ?????????????????????????????????????????????????? | | ?????????????????????????????????????????????????? | | ??????????????????????????????##?????????????????? | | ??????????????????????????????"#?????????????????? | | ?????????????????##?????????? "##????????????????? | | ?????????????????# ?????????" #????????????????? | | ?????????????????# ??????? #????????????????? | | ?????????????????#" ?????? "#????????????????? | | ?????????????????# ##### "#????????????????? | | ?????????????????#<< R @# #?????????????????? | | ???################<<## R "&"?????????????????? | | ??## ##??#< ##< <##?????????????????? | | ??# ####< "######???###???????????? | | ??# ## ## < ### #?? #???????????# | | ### ### ##### ### ???????????## | | #### ##???## ### #???????????# | | #?## #?????# # #??????????## | | ## #??# #???## # ##??????????# | | ?# #? #?## #??# ##??????????# | | ?# ##?# ####?## ######## ### | | ? ###??# ##???## ## | | ? ###????# ####???## ## & | | ## ##??????# ######## ### %# | | #####???????## #?# ### *# | | #????????????# #??# #?## # | | ?#####???????# #???#####??# ?? | | ##??????#### #??????????# ??? | | # ##????????# ## #?????????#%??? | | ## #???####### ### #???????? ???? | | ??#? ??### ## ###??# ##???????? ???? | | ????# #?## ## ##?????##???????? ????? | | ????? #?# #######????????????? ????? | | ?????# #?## """ ### ## #####????????"?????? | | ????##" #????#" " ### ##?????????????? | +----------------------------------------------------+ Best States ------------- Heat Dissipation 25 Energy Generation 12 Energy Capacity 265 Matter Stores 300 Matter Capacity 300 Sight Range 16 Terrain Scan Density 10 Armor Coverage 800 Evasion (%) 44 Recoil Reduction 2 Item Schematics ----------------- None Robot Schematics ------------------ None Fabricated ------------ Nothing Repaired ---------- Nothing Studied --------- None Alien Tech Used ----------------- None Achievements -------------- None Challenges ------------ None Game ------ Seed TeleporterFrostBeamcaster Manual? 0 Play Time 00:49:10 Cumulative 782.8 hours Start 2026.07.30 @ 00:51:54 End 2026.07.30 @ 08:43:31 Sessions 3 Manual Loads 0 Difficulty Rogue Special Mode None Game No. 288 Rogue 284 Adventurer 4 Explorer 0 Win Type - Total 21 Types 9/2/6/0/0/0/2/2/0/0 Lore% 89 Gallery% 77 Achievement% 61 Wizard Run 0 Options --------- Layout 1 ASCII 0 Keyboard 0 Movement Arrows Keybinds 0 Fullscreen 1 Font 40/SmallcapsGlow Map View 50x40 Zoom Use 0% Tactical HUD 1 Map Filters NONE Filters NONE Steam 1 RUN: 2b23e15b-79df-42ef-ba3e-136bab98f4df